Cogmind - Beta 11 *** ADVENTURER MODE // 2022.04.02 @ 17:37:39 Player: RandomCommander Result: Destroyed self via exploding Fusion Modulator Performance ------------- Evolutions (0) 0 Regions Visited (1) 200 Robots Destroyed (61) 305 Value Destroyed (971) 971 Prototype IDs (6) 120 Alien Tech Used (0) 0 Bonus (0) 0 TOTAL SCORE: 1596 Bonus ------- None Cogmind --------- Core Integrity 0/250 Matter 225/300 Energy 100/100 System Corruption 0% Temperature Cool (12) Movement Walking (120) Location -10/Materials Parts ------- > --- POWER (1) -------- (None) > --- PROPULSION (2) --- Aluminum Leg Aluminum Leg > --- UTILITY (2) ------ Medium Storage Unit Tractor Beam > --- WEAPON (2) ------- Small Laser > --- INVENTORY (10) --- Light Ion Engine Light Ion Engine Aluminum Leg Aluminum Leg Medium Storage Unit Improved Terrain Scanner EM Pulse Gun Particle Gun Light Assault Rifle Peak State ------------ > --- POWER ------------ Light Nuclear Core > --- PROPULSION ------- Aluminum Leg Aluminum Leg > --- UTILITY ---------- Medium Storage Unit Tractor Beam > --- WEAPON ----------- Small Laser Light Assault Rifle > --- INVENTORY -------- Light Ion Engine Light Ion Engine Aluminum Leg Aluminum Leg Small Storage Unit Improved Terrain Scanner EM Pulse Gun Light Assault Rifle [Rating: 10] Favorites ----------- Power Light Nuclear Core Engine Light Ion Engine Power Core Light Nuclear Core Propulsion Aluminum Leg Leg Aluminum Leg Utility Tractor Beam Device Tractor Beam Storage Medium Storage Unit Weapon Small Laser Energy Gun Small Laser Ballistic Gun Light Assault Rifle Launcher Grenade Launcher Build | -11 -10 ------- Run | Scr Mat Slots Evolved . | . . Power . | . . Propulsion . | . . Utility . | . . Weapon . | . . Parts Attached 22 | 7 15 Power 3 | 1 2 Engine 2 | 1 1 Core 1 | . 1 Reactor . | . . Propulsion 5 | 2 3 Treads . | . . Leg 5 | 2 3 Wheel . | . . Hover . | . . Flight . | . . Utility 6 | 2 4 Device 4 | 1 3 Storage 2 | 1 1 Processor . | . . Hackware . | . . Protection . | . . Artifact . | . . Weapon 8 | 2 6 Energy Gun 4 | 1 3 Energy Cannon . | . . Ballistic Gun 1 | 1 . Ballistic Cannon . | . . Launcher 3 | . 3 Special Weapon . | . . Impact Weapon . | . . Slashing Weapon . | . . Piercing Weapon . | . . Special Melee Weapon . | . . Unidentified Prototypes . | . . Parts Lost 6 | . 6 Power 2 | . 2 Propulsion 2 | . 2 Utility . | . . Weapon 2 | . 2 Highest Loss Streak 2 | . 2 To Critical Strikes . | . . Average Slot Usage (%) 97 | . 97 Engine 1 | . 1 Core 11 | . 11 Leg 27 | . 27 Device 13 | . 13 Storage 14 | . 14 Energy Gun 13 | . 13 Ballistic Gun 8 | . 8 Launcher 5 | . 5 Naked Turns . | . . Heaviest Build 20 | 12 20 Greatest Support 20 | 20 20 Greatest Overweight (x) 1 | . 1 Average Overweight (x) . | . . Largest Inventory Capacity 10 | 8 10 Average Capacity 9 | 7 9 Most Carried 10 | 4 10 Average Carried 8 | 1 8 Final Capacity 10 | 8 10 Final Carried 9 | 4 9 Class Distribution -------------------- 64% | Mutant 35% | Scavenger-Mutant Dominant Class ---------------- Mutant | -10/Materials Resources | -11 -10 ----------- Run | Scr Mat Matter Collected 1028 | 261 767 Remotely 935 | 168 767 Salvage Created 2067 | 78 1989 Parts 129 | 3 126 Haulers Intercepted 2 | . 2 Recyclers Shooed 6 | . 6 Parts Field Recycled . | . . Retrieved Matter . | . . Parts Self-Destructed . | . . Prevented . | . . Kills | -11 -10 ------- Run | Scr Mat Combat Hostiles Destroyed 17 | . 17 Guns 17 | . 17 Classes Destroyed 8 | 1 7 Worker 22 | . 22 Builder 9 | . 9 Tunneler 2 | . 2 Hauler 2 | . 2 Recycler 9 | 1 8 Watcher 2 | . 2 Swarmer 3 | . 3 Grunt 14 | . 14 Best Kill Streak 6 | 1 6 Combat Bots Only 4 | . 4 Max Kills in Single Turn 3 | 1 3 Gunslinging 1 | . 1 Exploded . | . . Melee . | . . Uniques/NPCs Destroyed . | . . Combat | -11 -10 -------- Run | Scr Mat Damage Taken 826 | . 826 Core 279 | . 279 Absorbed by Shields . | . . Regen/Repaired (Parts) 18 | . 18 Core Remaining (%) 100 | 100 . Volleys Fired 222 | 3 219 Largest 2 | 2 2 Hottest 70 | 60 70 Shots Fired 357 | 6 351 Gun 300 | 6 294 Cannon . | . . Launcher 57 | . 57 Special . | . . Kinetic 135 | 3 132 Thermal 146 | . 146 Explosive 57 | . 57 Electromagnetic 19 | 3 16 Robot Hit Streak 31 | 2 31 Robot Miss Streak 3 | 1 3 Penetration Max . | . . Secondary Targets 1 | . 1 Max Gunslinging Chain 1 | . 1 Shots Hit Robots 227 | 4 223 Core Hits 108 | 2 106 Critical Kills 1 | . 1 Critical Parts Destroyed 1 | . 1 Critical Strikes 3 | . 3 Destroy 2 | . 2 Corrupt 1 | . 1 Melee Attacks . | . . Impact . | . . Slashing . | . . Piercing . | . . Sneak Attacks . | . . Combat Hostiles . | . . Follow-up Attacks . | . . Damage Inflicted 2718 | 42 2676 Guns 2246 | 42 2204 Cannons . | . . Explosions 472 | . 472 Melee . | . . Ramming . | . . Kinetic 857 | 18 839 Thermal 1191 | . 1191 Explosive 472 | . 472 Electromagnetic 198 | 24 174 Impact . | . . Slashing . | . . Piercing . | . . Highest Corruption . | . . Average Corruption . | . . Corruption Purged . | . . Corruption Blocked . | . . Overload Shots . | . . Overflow Damage 144 | . 144 Projectiles . | . . Explosions 144 | . 144 Melee . | . . Knockbacks . | . . Impact . | . . Kinetic . | . . Secondary . | . . Self-Inflicted Damage 339 | . 339 Shots 11 | . 11 Rammed . | . . Targets Rammed . | . . Kicked . | . . Crushed . | . . Highest Temperature 114 | 20 114 Average Temperature 34 | 15 34 Received Heat Transfer 327 | . 327 Siege Activations . | . . Robots Corrupted . | . . Combat Hostiles . | . . Parts Fried 1 | . 1 Impact Corruptions . | . . Robots Melted . | . . Combat Hostiles . | . . Parts Melted 2 | . 2 Heat Transferred 2600 | . 2600 Parts Sabotaged . | . . Parts Stolen . | . . Parts Stripped . | . . Power Chain Reactions . | . . Missiles Intercepted . | . . Alert | -11 -10 ------- Run | Scr Mat Peak Influence 1148 | 5 1148 Initial 2 | . 2 Average 397 | 1 412 Maximum Alert Level 4 | . 4 Low Security (%) 20 | 100 17 Level 1 47 | . 49 Level 2 11 | . 12 Level 3 14 | . 14 Level 4 5 | . 5 Level 5 . | . . High Security . | . . Max Security . | . . Squads Dispatched 5 | . 5 Investigation 5 | . 5 Extermination . | . . Reinforcement . | . . Assault . | . . Garrison . | . . Intercept . | . . Searches Triggered . | . . Construction Impeded . | . . Haulers Reinforced . | . . Active Scanning Responses . | . . Cargo Convoy Interrupts . | . . Stealth | -11 -10 --------- Run | Scr Mat Distress Signals 3 | . 3 Communications Jammed . | . . Distress Signals . | . . Times Spotted 24 | . 24 Peak Tracking Total 5 | . 5 Tactical Retreats 2 | . 2 Traps | -11 -10 ------- Run | Scr Mat Traps Triggered 3 | . 3 Indirectly . | . . Trap Hack Attempts . | . . Triggered . | . . Disarmed . | . . Reprogrammed 8 | . 8 Reused 1 | . 1 Traps Extracted . | . . Installed . | . . Triggered 1 | . 1 Machines | -11 -10 ---------- Run | Scr Mat Machines Disabled 28 | . 28 Max in Single Turn 2 | . 2 Machines Sabotaged . | . . Garrisons Compromised . | . . Overloaded Fab Kills . | . . Hacking | -11 -10 --------- Run | Scr Mat Machines Accessed 9 | . 9 Terminals 8 | . 8 Fabricators . | . . Repair Stations 1 | . 1 Recycling Units . | . . Scanalyzers . | . . Garrison Access . | . . Total Hacks 33 | . 33 Successful 20 | . 20 Failed 12 | . 12 Catastrophic 3 | . 3 Database Lockouts 1 | . 1 Manual 20 | . 20 Terminals 30 | . 30 Fabricators . | . . Repair Stations 3 | . 3 Recycling Units . | . . Scanalyzers . | . . Garrison Access . | . . Terminal Hacks 18 | . 18 Robot Analysis 2 | . 2 Prototype ID Bank 4 | . 4 Branch Access Points 1 | . 1 Emergency Access Points 2 | . 2 Terminal Index 1 | . 1 Locate Traps 3 | . 3 Reprogram Traps 2 | . 2 Zone Layout 3 | . 3 Fabricator Hacks . | . . Repair Station Hacks 2 | . 2 Scan Component 1 | . 1 Repair 1 | . 1 Recycling Unit Hacks . | . . Scanalyzer . | . . Garrison Access Hacks . | . . Unauthorized Hacks . | . . Terminals . | . . Fabricators . | . . Repair Stations . | . . Recycling Units . | . . Scanalyzers . | . . Garrison Access . | . . Data Cores Recovered . | . . Used . | . . Hacking Detections 9 | . 9 Full Trace Events 9 | . 9 Feedback Events . | . . Feedback Blocked . | . . Robot Schematics Acquired . | . . Robots Built . | . . Authchips . | . . Time . | . . Total Robot Build Rating . | . . Part Schematics Acquired . | . . Parts Built . | . . Authchips . | . . Time . | . . Total Part Build Rating . | . . Parts Repaired 1 | . 1 Time 26 | . 26 Parts Recycled . | . . Recycled Matter . | . . Retrieved Matter . | . . Retrieved Components . | . . Parts Scanalyzed . | . . Part Schematics Acquired . | . . Parts Damaged . | . . Bothacking | -11 -10 ------------ Run | Scr Mat Used RIF Installer . | . . Robots Hacked . | . . Non-combat . | . . Combat . | . . Robot Hacks Applied . | . . Relay Couplers Released . | . . Fabnet Peak Effective % . | . . Robots Rewired . | . . Allies Hacked . | . . Hacks Repelled . | . . Allies | -11 -10 -------- Run | Scr Mat Total Allies . | . . Largest Group . | . . Highest-Rated Group . | . . Highest-Rated Ally . | . . Total Orders . | . . Ally Attacks . | . . Total Damage . | . . Kills . | . . Allies Corrupted . | . . Allies Melted . | . . Intel | -11 -10 ------- Run | Scr Mat Robot Analysis Total 2 | . 2 Derelict Logs Recovered . | . . Drone Launches . | . . Drone Recoveries . | . . Exploration | -11 -10 ------------- Run | Scr Mat Turns Passed 2096 | 77 2019 Spaces Moved 1214 | 49 1165 Core 5 | 5 . Treads . | . . Legs 1209 | 44 1165 Wheels . | . . Hover . | . . Flight . | . . Fastest Speed 50 | 50 120 Average Speed 120 | 112 121 Slowest Speed 190 | 120 190 Overloaded Moves . | . . Propulsion Burnouts . | . . Robots Hopped . | . . Cave-ins Triggered . | . . Exploration Rate (%) 51 | 4 99 Regions Visited 1 Branch Regions . Pre-discovered Areas . | . . Known Exits Taken . | . . Unknown Exits Taken 1 | 1 . Scrap Searched . | . . Spaces Dug 38 | . 38 Terrain Destroyed 376 | . 376 Melee . | . . Projectile . | . . AOE 376 | . 376 Terrain Rammed . | . . Walls Destroyed . | . . Machines Disabled . | . . Actions | -11 -10 --------- Run | Scr Mat Total 1510 | 62 1448 Wait 30 | . 30 Move 1213 | 48 1165 Hop . | . . Pick Up 15 | 4 11 Fast Attach 16 | 7 9 Attach 5 | . 5 Detach 2 | . 2 Swap 1 | . 1 Drop 6 | . 6 Fire 222 | 3 219 Melee . | . . Ram . | . . Kick . | . . Crush . | . . Escape Stasis . | . . Rewire . | . . Trap . | . . Miscellaneous . | . . Route ------- -11/Scrapyard -10/Materials (discovered 4 exits: [*Mat x3] / *Min) History --------- Turn | Location | Event 4 | -11/Scrapyard | Discovered new exit (range 14) 78 | -11/Scrapyard | Entered Materials 94 | -10/Materials | Central database locked down 336 | -10/Materials | Build established: Mutant 503 | -10/Materials | Discovered new exit (range 13) 535 | -10/Materials | Identified exit to Mines 653 | -10/Materials | Repaired Tractor Beam 872 | -10/Materials | Discovered new exit (range 10) 1105 | -10/Materials | Discovered new exit (range 12) 1355 | -10/Materials | Core integrity fell below 50% 1645 | -10/Materials | Build established: Scavenger-Mutant 2097 | -10/Materials | Destroyed self via exploding Fusion Modulator Last Messages --------------- Destroyed Lgt. Nuclear Core. Terminal disabled. K-01 Serf collects debris. Acquired 27 matter. Acquired 8 matter. K-01 Serf collects debris. Acquired 1 matter. Acquired 9 matter. K-01 Serf collects debris. Acquired 12 matter. Acquired 18 matter. K-01 Serf collects debris. Nuclear Reactor explodes. Acquired 11 matter. Acquired 9 matter. U-05 Engineer lays Concrete. The unstable cave ceiling collapses. Fusion Modulator explodes. Grenade Launcher destroyed. Destroyed Grenade Launcher. Map ----- +----------------------------------------------------+ | | | | | | | | | | | ???????????????????????????????? | | ???????????????????????????????? | | ???????????????????????????????? | | ???????????????????????????????? | | ???????????????????????????????? | | ???????????????????????????????? | | ???????????????????????????????? | | ???????????????????????????????? | | ???????????????????????????????? | | ???????????????????????????????? | | ???????????????????????????????? | | ???????????????????????????????? | | ???????????????????????????????? | | ???????????????????????????????? | | ???????????????????????????????? | | ??????????????????????########?? | | ??????????????????###### #?? | | ?????????????????## #?? | | ????####?????????# < #?? | | ?#### ###??????# #?? | | ?# #?????# *% @ #?? | | ?# ?????# #?? | | ?# ?????# # #?? | | ?# * #?????# ! ## # ##?? | | ?# # #?????## # #?? | | ## # #??????# ! # #?? | | # # ######## # #?? | | ! + #?? | | ! # #?? | | = =%! # #?? | | # # ## ######## ########?? | | # #?# # "### | | # #?# # # | | # #?# ! # " # | | # #?# # "" # | | # #?# # "" # | | ##+###########?# #" # | | #???## ## # | | ##### # # | | [ # !!! # | | ################## T + !!! # | | ???# ## #??# # !!! # | | ?### # " #??# # # | | ###### "" ######+##########? | | "" # #????? | +----------------------------------------------------+ Best States ------------- Heat Dissipation 25 Energy Generation 14 Energy Capacity 160 Matter Stores 300 Matter Capacity 300 Sight Range 16 Terrain Scan Density 10 Resistance: KI 20 Resistance: TH 20 Resistance: EX 20 Resistance: EM 20 Resistance: I 20 Resistance: S 20 Resistance: P 20 Evasion (%) 55 Offensive Hacking 10 Item Schematics ----------------- None Robot Schematics ------------------ None Fabricated ------------ Nothing Alien Tech Used ----------------- None Achievements -------------- None Challenges ------------ None Game ------ Seed DeliveryLinearMembrane Manual? 0 Play Time 00:23:19 Cumulative 101.7 hours Start 2022.04.02 @ 17:15:14 End 2022.04.02 @ 17:37:39 Sessions 1 Manual Loads 0 Difficulty Adventurer Special Mode None Game No. 8 Rogue 0 Adventurer 8 Explorer 0 Win Type - Total 1 Types 1/0/0/0/0/0/0/0/0 Lore% 31 Gallery% 36 Achievement% 38 Wizard Run 0 Options --------- ASCII 0 Keyboard 0 Movement Numpad Keybinds 0 Fullscreen 0 Font 16/SmallcapsGlow Map View 76x50 Tactical HUD 0 Map Filters NONE Filters NONE Steam 1 RUN: f8296803-44c9-4562-8564-d5964345329a